Cogmind - Beta 14 @@@ ROGUE MODE // 2024.09.14 @ 13:10:56 Player: saltine Result: Destroyed by S-10 Pest with Light Assault Rifle Performance ------------- Evolutions (0) 0 Regions Visited (2) 400 Robots Destroyed (21) 105 Value Destroyed (564) 564 Prototype IDs (2) 40 Alien Tech Used (0) 0 Bonus (0) 0 TOTAL SCORE: 1109 Bonus ------- None Cogmind --------- Core Integrity 0/250 Matter 101/300 Energy 244/250 System Corruption 0% Temperature Cool (0) Movement Treading (160) Location -10/Subcaves Parts ------- > --- POWER (1) -------- Ion Engine > --- PROPULSION (2) --- Light Treads Light Treads > --- UTILITY (2) ------ Large Storage Unit Weapon Shielding > --- WEAPON (2) ------- Battle Cannon Battle Cannon > --- INVENTORY (15) --- Light Ion Engine Light Treads Light Treads Light Treads Light Treads Light Treads Assault Rifle Assault Rifle Assault Rifle Barrage Gun Multitool Peak State ------------ > --- POWER ------------ Ion Engine > --- PROPULSION ------- Light Treads Light Treads > --- UTILITY ---------- Large Storage Unit Seismic Detector > --- WEAPON ----------- Battle Cannon Battle Cannon > --- INVENTORY -------- Light Ion Engine Light Treads Light Treads Light Treads Light Treads Light Treads Light Treads Light Armor Plating Assault Rifle Assault Rifle Assault Rifle Barrage Gun Multitool [Rating: 10] Favorites ----------- Power Ion Engine Engine Ion Engine Propulsion Light Treads Treads Light Treads Leg Aluminum Leg Utility Large Storage Unit Device Seismic Detector Storage Large Storage Unit Protection Light Armor Plating Weapon Battle Cannon Energy Cannon Beam Cannon Ballistic Gun Assault Rifle Ballistic Cannon Battle Cannon Build | -11 -10 -10 ------- Run | Yrd Mat Sub Slots Evolved . | . . . Power . | . . . Propulsion . | . . . Utility . | . . . Weapon . | . . . Parts Attached 22 | 2 5 15 Power 1 | . . 1 Engine 1 | . . 1 Core . | . . . Reactor . | . . . Propulsion 6 | 2 2 2 Treads 6 | 2 2 2 Leg . | . . . Wheel . | . . . Hover . | . . . Flight . | . . . Utility 12 | . 2 10 Device 4 | . . 4 Storage 1 | . 1 . Processor . | . . . Hackware . | . . . Protection 7 | . 1 6 Artifact . | . . . Weapon 3 | . 1 2 Energy Gun . | . . . Energy Cannon 1 | . 1 . Ballistic Gun . | . . . Ballistic Cannon 2 | . . 2 Launcher . | . . . Special Weapon . | . . . Impact Weapon . | . . . Slashing Weapon . | . . . Piercing Weapon . | . . . Special Melee Weapon . | . . . Unidentified Prototypes . | . . . Parts Lost 5 | . . 5 Power 1 | . . 1 Propulsion 1 | . . 1 Utility 2 | . . 2 Weapon 1 | . . 1 Highest Loss Streak 1 | . . 1 To Critical Strikes . | . . . Average Slot Usage (%) 99 | . 97 99 Engine 13 | . 14 13 Treads 27 | . 28 27 Device 7 | . . 9 Storage 14 | . 14 14 Protection 6 | . 11 4 Energy Cannon 9 | . 10 8 Ballistic Gun 4 | . 17 1 Ballistic Cannon 14 | . . 17 Peak Build Rating 10 | 6 8 10 Average Rating 8 | 6 7 9 On Entrance 6 | 6 6 8 Naked Turns . | . . . Heaviest Build 34 | 13 33 34 Greatest Support 40 | 40 40 40 Greatest Overweight (x) . | . . . Average Overweight (x) . | . . . Largest Inventory Capacity 15 | 8 15 15 Average Capacity 14 | 8 14 15 Most Carried 15 | 6 15 15 Average Carried 12 | 4 9 13 Final Capacity 15 | 8 15 15 Final Carried 15 | 4 15 11 Class Distribution -------------------- 100% | Mutant Dominant Class ---------------- Mutant | -10/Materials Mutant | -10/Subcaves Resources | -11 -10 -10 ----------- Run | Yrd Mat Sub Matter Collected 740 | 192 49 499 Remotely . | . . . Salvage Created 505 | . 132 373 Parts 30 | . 12 18 Haulers Intercepted . | . . . Recyclers Shooed . | . . . Parts Field Recycled . | . . . Retrieved Matter . | . . . Parts Self-Destructed 4 | . . 4 Prevented . | . . . Kills | -11 -10 -10 ------- Run | Yrd Mat Sub Combat Hostiles Destroyed 20 | . 7 13 Guns 5 | . 5 . Cannons 15 | . 2 13 Classes Destroyed 6 | . 3 3 Worker 1 | . 1 . Swarmer 8 | . 6 2 Grunt 2 | . 1 1 Sentry 1 | . . 1 Artisan 1 | . . 1 Subdweller 9 | . . 9 Best Kill Streak 3 | . 3 2 Combat Bots Only 3 | . 3 2 Max Kills in Single Turn 1 | . 1 1 Gunslinging . | . . . Exploded . | . . . Melee . | . . . Uniques/NPCs Destroyed . | . . . Combat | -11 -10 -10 -------- Run | Yrd Mat Sub Hostile Shots Fired 131 | . 30 101 Missed 51 | . 4 47 Damage Taken 1264 | . 238 1026 Core 253 | . 27 226 Absorbed by Shields . | . . . Redirected to Shielding 10 | . . 10 Core Remaining (%) 100 | 100 . . Volleys Fired 92 | . 18 74 Largest 2 | . 2 2 Hottest 99 | . 80 99 Shots Fired 159 | . 36 123 Gun 18 | . 18 . Cannon 141 | . 18 123 Launcher . | . . . Special . | . . . Kinetic 116 | . 18 98 Thermal 43 | . 18 25 Explosive . | . . . Electromagnetic . | . . . Robot Hit Streak 13 | . 5 13 Robot Miss Streak 6 | . 4 6 Penetration Max . | . . . Secondary Targets . | . . . Shots Hit Robots 82 | . 19 63 Core Hits 29 | . 8 21 Critical Kills . | . . . Critical Parts Destroyed . | . . . Critical Strikes 5 | . . 5 Blast 5 | . . 5 Melee Attacks . | . . . Impact . | . . . Slashing . | . . . Piercing . | . . . Sneak Attacks . | . . . Combat Hostiles . | . . . Follow-up Attacks . | . . . Damage Inflicted 1491 | . 276 1215 Guns 133 | . 133 . Cannons 1353 | . 138 1215 Explosions . | . . . Melee . | . . . Ramming 5 | . 5 . Kinetic 1105 | . 133 972 Thermal 381 | . 138 243 Explosive . | . . . Electromagnetic . | . . . Impact . | . . . Slashing . | . . . Piercing . | . . . Highest Corruption . | . . . Average Corruption . | . . . Corruption Purged . | . . . Corruption Blocked . | . . . Overload Shots . | . . . Overflow Damage 15 | . 8 7 Projectiles 15 | . 8 7 Explosions . | . . . Melee . | . . . Knockbacks 10 | . . 10 Impact . | . . . Kinetic 10 | . . 10 Secondary . | . . . Self-Inflicted Damage . | . . . Shots . | . . . Rammed . | . . . Targets Rammed 1 | . 1 . Kicked . | . . . Crushed 1 | . 1 . Highest Temperature 237 | . 237 5 Average Temperature 87 | . 90 2 Received Heat Transfer 114 | . 48 66 Siege Activations . | . . . Robots Corrupted . | . . . Combat Hostiles . | . . . Parts Fried . | . . . Impact Corruptions . | . . . Robots Melted . | . . . Combat Hostiles . | . . . Parts Melted 1 | . . 1 Heat Transferred 814 | . 296 518 Parts Sabotaged . | . . . Parts Stolen . | . . . Parts Stripped . | . . . Power Chain Reactions . | . . . Alert | -11 -10 -10 ------- Run | Yrd Mat Sub Peak Influence 238 | . 238 . Initial . | . . . Average 70 | . 71 . Maximum Alert Level 1 | . 1 . Low Security (%) 98 | 100 98 . Level 1 1 | . 1 . Level 2 . | . . . Level 3 . | . . . Level 4 . | . . . Level 5 . | . . . High Security . | . . . Max Security . | . . . Squads Dispatched 1 | . 1 . Investigation . | . . . Extermination . | . . . Reinforcement 1 | . 1 . Assault . | . . . Garrison . | . . . Intercept . | . . . Searches Triggered . | . . . Construction Impeded . | . . . Haulers Reinforced . | . . . Active Scanning Responses . | . . . Cargo Convoy Interrupts . | . . . Stealth | -11 -10 -10 --------- Run | Yrd Mat Sub Distress Signals 2 | . 2 . Communications Jammed . | . . . Distress Signals . | . . . Times Spotted 32 | . 14 18 Peak Tracking Total 6 | . 4 6 Tactical Retreats 2 | . 1 1 Traps | -11 -10 -10 ------- Run | Yrd Mat Sub Traps Triggered 2 | . . 2 Indirectly . | . . . Trap Hack Attempts . | . . . Triggered . | . . . Disarmed . | . . . Reprogrammed . | . . . Reused . | . . . Traps Extracted . | . . . Installed . | . . . Triggered . | . . . Machines | -11 -10 -10 ---------- Run | Yrd Mat Sub Machines Disabled 1 | . 1 . Max in Single Turn 1 | . 1 . Machines Repaired . | . . . Machines Dismantled . | . . . Machines Sabotaged . | . . . Overloaded Fab Kills . | . . . Hacking | -11 -10 -10 --------- Run | Yrd Mat Sub Machines Accessed 6 | . 4 2 Terminals 3 | . 3 . Fabricators . | . . . Repair Stations . | . . . Recycling Units 1 | . 1 . Scanalyzers . | . . . Garrison Access . | . . . Total Hacks 15 | . 10 5 Successful 9 | . 4 5 Failed 6 | . 6 . Catastrophic 2 | . 2 . Database Lockouts . | . . . Manual 3 | . 3 . Terminals 9 | . 9 . Fabricators . | . . . Repair Stations . | . . . Recycling Units 1 | . 1 . Scanalyzers . | . . . Garrison Access . | . . . Terminal Hacks 7 | . 2 5 Record 4 | . . 4 Prototype ID Bank 1 | . 1 . Open Door 1 | . . 1 Registered Components 1 | . 1 . Fabricator Hacks . | . . . Repair Station Hacks . | . . . Recycling Unit Hacks . | . . . Scanalyzer . | . . . Garrison Access Hacks . | . . . Unauthorized Hacks 2 | . 2 . Terminals 2 | . 2 . Botnet 1 | . 1 . Operators 1 | . 1 . Fabricators . | . . . Repair Stations . | . . . Recycling Units . | . . . Scanalyzers . | . . . Garrison Access . | . . . Data Cores Recovered . | . . . Used . | . . . Hacking Detections 4 | . 4 . Full Trace Events . | . . . Feedback Events . | . . . Feedback Blocked . | . . . Robot Schematics Acquired . | . . . Robots Built . | . . . Authchips . | . . . Time . | . . . Total Robot Build Rating . | . . . Part Schematics Acquired . | . . . Parts Built . | . . . Authchips . | . . . Time . | . . . Total Part Build Rating . | . . . Parts Repaired . | . . . Time . | . . . Parts Recycled . | . . . Recycled Matter . | . . . Retrieved Matter . | . . . Retrieved Components . | . . . Parts Scanalyzed . | . . . Part Schematics Acquired . | . . . Parts Damaged . | . . . Bothacking | -11 -10 -10 ------------ Run | Yrd Mat Sub Used RIF Installer . | . . . Robots Hacked . | . . . Non-combat . | . . . Combat . | . . . Robot Hacks Applied . | . . . Relay Couplers Released . | . . . Fabnet Peak Effective % . | . . . Robots Rewired . | . . . Allies Hacked . | . . . Hacks Repelled . | . . . Allies | -11 -10 -10 -------- Run | Yrd Mat Sub Total Allies . | . . . Largest Group . | . . . Highest-Rated Group . | . . . Highest-Rated Ally . | . . . Total Orders . | . . . Ally Attacks . | . . . Total Damage . | . . . Kills . | . . . Allies Corrupted . | . . . Allies Melted . | . . . Intel | -11 -10 -10 ------- Run | Yrd Mat Sub Robot Analysis Total . | . . . Derelict Logs Recovered 1 | . . 1 Drone Launches . | . . . Drone Recoveries . | . . . Exploration | -11 -10 -10 ------------- Run | Yrd Mat Sub Turns Passed 3409 | 8 652 2749 Spaces Moved 1837 | 3 282 1552 Core . | . . . Treads 1837 | 3 282 1552 Legs . | . . . Wheels . | . . . Hover . | . . . Flight . | . . . Fastest Speed 160 | 160 160 160 Average Speed 160 | 160 160 160 Slowest Speed 160 | 160 160 160 Overloaded Moves . | . . . Propulsion Burnouts . | . . . Robots Hopped . | . . . Cave-ins Triggered . | . . . Exploration Rate (%) 42 | 2 55 71 Regions Visited 2 Branch Regions 1 Pre-discovered Areas 1 | . . 1 Known Exits Taken . | . . . Unknown Exits Taken 2 | 1 1 . Scrap Searched . | . . . Spaces Dug . | . . . Terrain Destroyed 1 | . . 1 Melee . | . . . Projectile 1 | . . 1 AOE . | . . . Terrain Rammed . | . . . Walls Destroyed . | . . . Machines Disabled . | . . . Actions | -11 -10 -10 --------- Run | Yrd Mat Sub Total 2148 | 6 448 1694 Wait 167 | . 123 44 Move 1835 | 2 281 1552 Hop . | . . . Pick Up 18 | . 14 4 Fast Attach 3 | . 2 1 Attach 5 | . . 5 Detach . | . . . Swap 14 | 2 3 9 Drop 13 | 2 6 5 Fire 92 | . 18 74 Melee . | . . . Ram . | . . . Kick . | . . . Crush 1 | . 1 . Escape Stasis . | . . . Rewire . | . . . Trap . | . . . Miscellaneous . | . . . Route ------- -11/Scrapyard -10/Materials (discovered 3 exits: [*Mat] / [*Min] / *Sub) -10/Subcaves (discovered 1 exit: [*Mat]) History --------- Turn | Location | Event 6 | -11/Scrapyard | Discovered new exit (range 3) 9 | -11/Scrapyard | Entered Materials 182 | -10/Materials | Discovered new exit (range 13) 306 | -10/Materials | Build established: Mutant 466 | -10/Materials | Discovered new exit (range 8) 641 | -10/Materials | Discovered new exit (range 4) 661 | -10/Materials | Entered Subcaves 668 | -10/Subcaves | Learned location of Zion (-7) 781 | -10/Subcaves | Shifting Twisted Machinery released Riot Gun 784 | -10/Subcaves | Shifting Twisted Machinery released Flamer 1218 | -10/Subcaves | A swath of the cavern ceiling suddenly collapsed 1329 | -10/Subcaves | Shifting Twisted Machinery released Sub. Power Source 1386 | -10/Subcaves | Discovered new exit (range 14) 1424 | -10/Subcaves | Visited Clippyterm 1429 | -10/Subcaves | Learned 40 Factory zone layouts 1600 | -10/Subcaves | Shifting Twisted Machinery released Sub. Monowheel 1637 | -10/Subcaves | Shifting Twisted Machinery released Battle Cannon 1638 | -10/Subcaves | Shifting Twisted Machinery released Sub. Optics 2380 | -10/Subcaves | A swath of the cavern ceiling suddenly collapsed 2412 | -10/Subcaves | Core integrity fell below 50% 3381 | -10/Subcaves | Core integrity fell below 20% 3410 | -10/Subcaves | Destroyed by S-10 Pest with Light Assault Rifle Last Messages --------------- 02990_ 1V-IUU(R) destroyed. 02993_ Acquired 37 matter. 02995_ Acquired 35 matter. 03000_ Acquired Weapon Shielding. 03004_ Acquired 5 matter. 03109_ Subatomizers dissect the Sub. Laser. 03114_ Acquired 5 matter. 03139_ Subatomizers dissect the Sub. Laser. 03223_ Subatomizers dissect the Sub. Laser, destroying it. 03268_ Subatomizers dissect the Sub. Optics. 03379_ S-10 Pest springs to life. 03391_ Destroyed Flight Unit. 03393_ Lgt. Armor Plating destroyed. 03395_ S-10 Pest knocked back. 03398_ S-10 Pest destroyed. 03401_ Subatomizers dissect the Flight Unit. 03401_ S-10 Pest destroyed. 03404_ Destroyed Flight Unit. 03404_ S-10 Pest knocked back. 03406_ S-10 Pest destroyed. Map ----- +----------------------------------------------------+ | ??# ###?## ##?## ##???????????????# | | ??# ####& #??# ##????????????????## | | ??# [& ##??# #??????????????????# | | ??## = ###???# #??????????????????# # | | ??## ##?????## #??????????????????# # | | ??# #???###?## ###?????#######??????# | | ??## ##### #### ##??????## ##?????# | | ??## ## ##??????# ##????# | | ??# ## ##?????# ##???# | | ?# #?????# ###### | | ?# ## ### ##????## # ### # | | ?##?## ##?# ####??## ## ## # | | ?????# #??## ## ##### ### ## # | | ?????# ##???##### ## ## ## # | | ?????#####????????# # ## | | ????????????????# ### ## ### ## | | ????????????????# #?#### ##?## | | ????????????????## ####???# ### #???## | | ?????????????????##???????# ##?## #???#### | | ??????????????????????????# ####? ?????# | | ??????????????????????????# ### ### ??## | | ??????????????????????????##??# #? ## | | ????????????????????????###??## #?# ### | | ????????????##?????????## #?## #??# #?## | | ??????????# ##### #?# #???#####?## | | ??????????# @### ##?????????# | | ?????????????# % = #??????????#### | | ?????????????## [%% #?????????????# | | ??????????????### *s ????????# | | ????????????????# ### ### ### ??????# | | ????????????????????# ??#######??# ""?????## | | ???????????????????# ?????????????## "??#### | | ??????????????????# ??????????????? "?## | | ????????????????? ????????????????? ""??# | | ???????????????? ??????????????????####??# | | ??????????????? ?????????????????## #### | | ??????????????? ?????????????????## ## | | ????????????????##??????????????????# # | | ???????????????????????????????????# ## ## | | ???????????????????????????????????##############? | | ?????????????????????????????????????????????????? | | ?????????????????????????????????????????????????? | | ?????????????????????????????????????????????????? | | ?????????????????????????????????????????????????? | | ?????????????????????????????????????????????????? | | ?????????????????????????????????????????????????? | | ?????????????????????????????????????????????????? | | ?????????????????????????????????????????????????? | | ?????????????????????????????????????????????????? | | ?????????????????????????????????????????????????? | +----------------------------------------------------+ Best States ------------- Heat Dissipation 25 Energy Generation 10 Energy Capacity 250 Matter Stores 272 Matter Capacity 300 Sight Range 16 Terrain Scan Density 10 Armor Coverage 150 Weapon Shielding 33 Evasion (%) 40 Recoil Reduction 2 Item Schematics ----------------- None Robot Schematics ------------------ None Fabricated ------------ Nothing Alien Tech Used ----------------- None Achievements -------------- None Challenges ------------ None Game ------ Seed ArcZhirovBeacon Manual? 0 Play Time 00:18:26 Cumulative 202.0 hours Start 2024.09.14 @ 12:53:47 End 2024.09.14 @ 13:10:56 Sessions 1 Manual Loads 0 Difficulty Rogue Special Mode None Game No. 137 Rogue 137 Adventurer 0 Explorer 0 Win Type - Total 9 Types 3/0/4/1/0/0/1/0/0 Lore% 72 Gallery% 71 Achievement% 64 Wizard Run 0 Options --------- Layout 0 ASCII 0 Keyboard 0 Movement Arrows Keybinds 0 Fullscreen 2 Font 18/SmallcapsGlow Map View 76x50 Zoom Use 0% Tactical HUD 1 Map Filters NONE Filters NONE Steam 1 RUN: 598c1252-3ae5-4aa8-a072-5392511d0626